bitfinex-derivatives/quotes_BNBF0:USTF0_20250305
["timestamp","ask_amount","ask_price","bid_price","bid_amount"]
[1741173374186,2.55390278,602.41,601.76,1.21098633]
[1741173374384,2.55398857,602.4,601.76,1.21098633]
[1741173374585,0.92961403,602.39,601.76,1.21098633]
[1741173374786,0.92961403,602.38,601.76,1.21098633]
[1741173374985,0.92961403,602.37,601.76,1.21098633]
[1741173375186,1.18893785,602.36,601.76,1.21098633]
[1741173375588,1.18893785,602.35,601.76,1.21098633]
[1741173375988,1.18893785,602.34,601.79,1.21098633]
[1741173376488,1.18893785,602.33,601.79,1.21098633]
[1741173376689,0.98994427,602.56,601.79,1.21098633]
[1741173376890,4.04336485,602.55,601.79,1.21098633]
[1741173377192,0.98994427,602.53,601.79,1.21098633]
[1741173377385,5.23255106,602.52,601.79,1.21098633]
[1741173377584,4.04336485,602.51,601.79,1.21098633]
[1741173377791,4.04336485,602.5,601.79,1.21098633]
[1741173378092,5.23255106,602.49,601.79,1.21098633]
[1741173378291,4.04336485,602.48,601.73,1.21098633]
[1741173378487,4.04336485,602.47,601.73,1.21098633]
[1741173378695,4.04336485,602.46,601.73,1.21098633]
[1741173378894,5.23255106,602.45,601.73,1.21098633]
[1741173379187,4.04336485,602.44,601.73,1.21098633]
[1741173379391,4.04336485,602.43,601.73,1.21098633]
[1741173379593,4.04336485,602.42,601.73,1.21098633]
[1741173379794,5.23255106,602.41,601.73,1.21098633]
[1741173379996,4.04336485,602.4,601.73,1.21098633]
[1741173380188,4.04336485,602.39,601.73,1.21098633]
[1741173380494,5.23255106,602.38,601.73,1.21098633]
[1741173380688,4.04336485,602.37,601.73,1.21098633]
[1741173380995,4.04336485,602.36,601.66,0.481]
[1741173381194,4.04336485,602.35,601.66,0.481]
[1741173381393,4.04336485,602.34,601.66,0.481]
[1741173381593,4.04336485,602.33,601.66,0.481]
[1741173381795,4.04336485,602.32,601.66,0.481]
[1741173381990,4.04336485,602.31,601.66,0.481]
[1741173382195,4.04336485,602.3,601.66,0.481]
[1741173382395,4.04336485,602.29,601.66,0.481]
[1741173382596,4.04132589,602.28,601.66,0.481]
[1741173382791,0.98994427,602.5,601.66,0.481]
[1741173382792,3.74437909,602.27,601.66,0.481]
[1741173382993,2.55519288,602.26,601.66,0.481]
[1741173383192,2.55519288,602.25,601.66,0.481]
[1741173383395,0.93010748,602.24,601.66,0.481]
[1741173383591,0.93010748,602.23,601.66,0.481]
[1741173383793,0.93010748,602.22,601.66,0.481]
[1741173384000,0.93010748,602.21,601.66,0.481]
[1741173384197,1.18918621,602.2,601.66,0.481]
[1741173384893,1.48620881,602.49,601.66,0.481]
[1741173384894,0.98994427,602.5,601.66,0.481]
[1741173385098,1.62291749,602.49,601.66,0.481]
[1741173385294,4.03791907,602.48,601.66,0.481]
[1741173385499,5.22549531,602.47,601.66,0.481]
[1741173385695,5.22549531,602.46,601.66,0.481]
[1741173385898,4.03791907,602.45,601.66,0.481]
[1741173386095,4.03791907,602.44,601.66,0.481]
[1741173386305,4.03791907,602.43,601.66,0.481]
[1741173386511,4.03791907,602.42,601.66,0.481]
[1741173386703,4.03791907,602.41,601.66,0.481]
[1741173386904,4.03791907,602.4,601.66,0.481]
[1741173387103,4.03791907,602.39,601.66,0.481]
[1741173387307,5.22549531,602.38,601.66,0.481]
[1741173387504,4.03791907,602.37,601.66,0.481]
[1741173387699,4.03791907,602.36,601.66,0.481]
[1741173387907,4.03791907,602.35,601.66,0.481]
[1741173388109,5.22549531,602.34,601.66,0.481]
[1741173388305,2.55176425,602.33,601.66,0.481]
[1741173388500,2.55176425,602.32,601.66,0.481]
[1741173388703,2.116423,602.31,601.66,0.481]
[1741173388914,0.92884676,602.3,601.66,0.481]
[1741173389103,0.92884676,602.29,601.66,0.481]
[1741173389304,1.18757624,602.29,601.66,0.481]
[1741173389702,0.92922011,602.28,601.66,0.481]
[1741173389906,1.18757624,602.29,601.66,0.481]
[1741173390106,2.11685237,602.28,601.66,0.481]
[1741173390301,1.18757624,602.28,601.66,0.481]
[1741173390706,1.18757624,602.27,601.66,0.481]
[1741173390906,0.9890871,602.59,601.66,0.481]
[1741173391107,4.03881717,602.58,601.66,0.481]
[1741173391406,4.03881717,602.57,601.66,0.481]
[1741173391609,4.03881717,602.56,601.66,0.481]
[1741173391803,5.02790427,602.55,601.66,0.481]
[1741173392107,4.03881717,602.54,601.66,0.481]
[1741173392306,5.22654452,602.53,601.66,0.481]
[1741173392501,4.03881717,602.52,601.66,0.481]
[1741173392704,5.22654452,602.51,601.66,0.481]
[1741173392905,5.22654452,602.5,601.66,0.481]
[1741173393103,5.22654452,602.49,601.66,0.481]
[1741173393301,4.03881717,602.48,601.66,0.481]
[1741173393504,5.22654452,602.47,601.66,0.481]
[1741173393709,5.22654452,602.46,601.66,0.481]
[1741173393906,4.03765503,602.45,601.66,0.481]
[1741173394201,4.03765503,602.44,601.66,0.481]
[1741173394405,4.03765503,602.43,601.66,0.481]
[1741173394603,5.22538238,602.42,601.66,0.481]
[1741173394807,4.03765503,602.41,601.66,0.481]
[1741173395007,5.22538238,602.4,601.66,0.481]
[1741173395209,4.03765503,602.39,601.66,0.481]
[1741173395408,4.03765503,602.38,601.66,0.481]
[1741173395603,4.03765503,602.37,601.66,0.481]
[1741173395802,3.73885269,602.36,601.66,0.481]
[1741173396009,2.1168084,602.35,601.66,0.481]
[1741173396202,0.92831388,602.34,601.66,0.481]
[1741173396401,1.18772735,602.35,601.66,0.481]
[1741173396605,0.28899574,602.54,601.66,0.481]
[1741173396606,1.18772735,602.34,601.66,0.481]
[1741173397407,1.48523178,602.52,601.66,0.481]
[1741173397708,5.22171428,602.51,601.66,0.481]
[1741173397908,4.03504527,602.5,601.66,0.481]
[1741173398103,4.03504527,602.49,601.66,0.481]
[1741173398301,4.03504527,602.48,601.66,0.481]
[1741173398508,4.03504527,602.47,601.66,0.481]
[1741173398713,4.03504527,602.46,601.66,0.481]
[1741173398905,1.18666901,602.48,601.66,0.481]
[1741173398906,5.22171428,602.45,601.66,0.481]
[1741173399108,4.03504527,602.44,601.66,0.481]
[1741173399307,4.03504527,602.43,601.66,0.481]
[1741173399506,4.03504527,602.42,601.66,0.481]
[1741173399713,4.03504527,602.41,601.66,0.481]
[1741173399910,4.03504527,602.4,601.66,0.481]
[1741173400106,4.03504527,602.39,601.66,0.481]
[1741173400307,4.03504527,602.38,601.66,0.481]
[1741173400612,4.03504527,602.37,601.66,0.481]
[1741173400812,4.03504527,602.36,601.66,0.481]
[1741173401013,4.03504527,602.35,601.66,0.481]
[1741173401213,1.18666901,602.37,601.66,0.481]
[1741173401214,4.03504527,602.34,601.66,0.481]
[1741173401415,5.22171428,602.33,601.66,0.481]
[1741173401610,4.03504527,602.32,601.66,0.481]
[1741173401810,1.62167359,602.32,601.66,0.481]
[1741173402005,4.03121282,602.31,601.66,0.481]
[1741173402211,4.03121282,602.3,601.66,0.481]
[1741173402411,4.03121282,602.29,601.66,0.481]
[1741173402713,4.03104124,602.28,601.66,0.481]
[1741173402914,5.21771025,602.27,601.66,0.481]
[1741173403114,4.03104124,602.26,601.66,0.481]
[1741173403314,4.03104124,602.25,601.66,0.481]
[1741173403515,4.03104124,602.24,601.66,0.481]
[1741173403809,4.03104124,602.23,601.66,0.481]
[1741173404015,4.03104124,602.22,601.66,0.481]
[1741173404214,2.54841945,602.21,601.66,0.481]
[1741173404415,0.92674586,602.2,601.66,0.481]
[1741173404616,2.11341487,602.19,601.66,0.481]
[1741173404816,0.92674586,602.18,601.66,0.481]
[1741173405014,0.92641523,602.17,601.66,0.481]
[1741173405214,1.18666901,602.17,601.66,0.481]
[1741173405716,2.11308649,602.16,601.66,0.481]
[1741173405916,2.11308649,602.15,601.66,0.481]
[1741173406114,1.18666901,602.15,601.45,0.28908096]
[1741173406514,3.73090088,602.14,601.43,1.21098633]
[1741173406715,4.02593131,602.13,601.43,1.21098633]
[1741173407012,4.02593131,602.12,601.42,1.21098633]
[1741173407211,5.21260032,602.11,601.42,1.21098633]
[1741173407417,2.543503,602.1,601.42,1.21098633]
[1741173407612,3.73017201,602.09,601.42,1.21098633]
[1741173407817,2.543503,602.08,601.42,1.21098633]
[1741173408018,2.543503,602.07,601.42,1.21098633]
[1741173408215,0.9254576,602.06,601.42,1.21098633]
[1741173408517,1.18666901,602.07,601.42,1.21098633]
[1741173408918,1.18666901,602.06,601.42,1.21098633]
[1741173409323,1.18666901,602.06,601.42,0.481]
[1741173409618,2.54233653,602.22,601.42,0.481]
[1741173409812,2.54233653,602.21,601.42,0.481]
[1741173410014,2.54233653,602.2,601.42,0.481]
[1741173410320,0.92552218,602.19,601.42,0.481]
[1741173410613,1.18350412,602.2,601.42,0.481]
[1741173411016,0.92556006,602.19,601.42,0.481]
[1741173411211,3.09785605,602.38,601.42,0.481]
[1741173411517,5.20688116,602.37,601.42,0.481]
[1741173411717,4.02337208,602.36,601.42,0.481]
[1741173411916,4.02337208,602.35,601.42,0.481]
[1741173412119,4.02337208,602.34,601.42,0.481]
[1741173412318,4.02337208,602.33,601.42,0.481]
[1741173412518,4.02337208,602.32,601.42,0.481]
[1741173412718,4.02337208,602.31,601.42,0.481]
[1741173412913,4.02337208,602.3,601.42,0.481]
[1741173413112,4.02337208,602.29,601.42,0.481]
[1741173413315,4.02337208,602.28,601.42,0.481]
[1741173413516,5.20688116,602.27,601.42,0.481]
[1741173413717,4.02337208,602.26,601.42,0.481]
[1741173414021,4.02337208,602.25,601.42,0.481]
[1741173414219,2.54241828,602.24,601.42,0.481]
[1741173414419,2.54241828,602.23,601.42,0.481]
[1741173414619,2.10947641,602.22,601.42,0.481]
[1741173414819,1.18350908,602.22,601.42,0.481]
[1741173415120,1.18350908,602.21,601.42,0.481]
[1741173415320,1.48156773,602.34,601.42,0.481]
[1741173415620,2.5438484,602.33,601.42,0.481]
[1741173415815,2.5438484,602.32,601.42,0.481]
[1741173416016,5.20937669,602.31,601.42,0.481]
[1741173416320,4.0254584,602.3,601.42,0.481]
[1741173416619,4.0254584,602.29,601.42,0.481]
[1741173416819,4.0254584,602.28,601.42,0.481]
[1741173417021,0.28910018,602.29,601.42,0.481]
[1741173417022,4.0254584,602.27,601.42,0.481]
[1741173417220,4.0254584,602.26,601.42,0.481]
[1741173417418,4.0254584,602.25,601.42,0.481]
[1741173417618,4.0254584,602.24,601.42,0.481]
[1741173417820,4.0254584,602.23,601.42,0.481]
[1741173418020,4.0254584,602.22,601.42,0.481]
[1741173418213,4.0254584,602.21,601.42,0.481]
[1741173418417,4.0254584,602.2,601.42,0.481]
[1741173418619,4.0254584,602.19,601.42,0.481]
[1741173418819,2.5438484,602.18,601.42,0.481]
[1741173419020,2.5438484,602.17,601.42,0.481]
[1741173419218,2.5438484,602.16,601.42,0.481]
[1741173419422,0.9260168,602.15,601.42,0.481]
[1741173419618,0.9260168,602.14,601.42,0.481]
[1741173419822,1.18391829,602.15,601.42,0.481]
[1741173420122,1.6184104,602.14,601.42,0.481]
[1741173420825,1.18391829,602.15,601.42,0.481]
[1741173421122,2.54517478,602.14,601.42,0.481]
[1741173421423,2.54517478,602.13,601.42,0.481]
[1741173421621,2.54517478,602.12,601.42,0.481]
[1741173421822,2.54517478,602.11,601.42,0.481]
[1741173422123,0.28912419,602.19,601.42,0.481]
[1741173422124,3.72909307,602.1,601.42,0.481]
[1741173422418,3.72909307,602.09,601.42,0.481]
[1741173422720,0.92654145,602.08,601.42,0.481]
[1741173422918,2.11045974,602.07,601.42,0.481]
[1741173423119,0.92654145,602.06,601.42,0.481]
[1741173423323,1.18391829,602.07,601.42,0.481]
[1741173423523,2.11028427,602.06,601.42,0.481]
[1741173423724,1.18391829,602.06,601.42,0.481]
[1741173424220,1.18391829,602.05,601.42,0.481]
[1741173425019,0.92643487,602.04,601.42,0.481]
[1741173425225,1.18391829,602.04,601.42,0.481]
[1741173425520,1.18391829,602.03,601.42,0.481]
[1741173425721,0.92613654,602.02,601.42,0.481]
[1741173425917,1.18391829,602.03,601.42,0.481]
[1741173425918,0.92613654,602.01,601.42,0.481]
[1741173426126,0.92613654,602.0,601.42,0.481]
[1741173426425,2.10980879,601.99,601.42,0.481]
[1741173426622,0.9258905,601.98,601.42,0.481]
[1741173426818,0.9258905,601.97,601.42,0.481]
[1741173427020,1.18391829,601.98,601.42,0.481]
[1741173427219,0.92609515,601.97,601.42,0.481]
[1741173427425,3.09889643,602.06,601.42,0.481]
[1741173427621,5.20879234,602.05,601.42,0.481]
[1741173427925,4.02478052,602.04,601.42,0.481]
[1741173428124,2.54326599,602.03,601.42,0.481]
[1741173428432,2.54326599,602.02,601.42,0.481]
[1741173428630,2.54326599,602.01,601.42,0.481]
[1741173428826,2.54326599,602.0,601.42,0.481]
[1741173429132,0.92588409,601.99,601.42,0.481]
[1741173429425,0.28918786,602.08,601.42,0.481]
[1741173429426,3.72770601,601.98,601.42,0.481]
[1741173429630,2.54369419,601.97,601.42,0.481]
[1741173429825,2.54369419,601.96,601.42,0.481]
[1741173430024,2.54369419,601.95,601.42,0.481]
[1741173430228,5.20920724,601.94,601.42,0.481]
[1741173430426,4.02536032,601.93,601.42,0.481]
[1741173430627,2.54369419,601.92,601.42,0.481]
[1741173430831,0.92588409,601.91,601.42,0.481]
[1741173431030,2.10989591,601.9,601.42,0.481]
[1741173431230,0.92588409,601.89,601.42,0.481]
[1741173431426,2.10989591,601.88,601.42,0.481]
[1741173431625,2.10989591,601.87,601.42,0.481]
[1741173431829,1.18401182,601.87,601.42,0.481]
[1741173432333,0.9867163,602.15,601.42,0.481]
[1741173432536,4.0245522,602.14,601.42,0.481]
[1741173432736,4.02414463,602.13,601.42,0.481]
[1741173432937,4.02414463,602.12,601.42,0.481]
[1741173433131,4.02414463,602.11,601.42,0.481]
[1741173433335,4.02414463,602.1,601.42,0.481]
[1741173433639,4.02414463,602.09,601.42,0.481]
[1741173433937,4.02414463,602.08,601.42,0.481]
[1741173434136,4.02414463,602.07,601.42,0.481]
[1741173434432,4.02414463,602.06,601.42,0.481]
[1741173434635,5.20777161,602.05,601.42,0.481]
[1741173434834,4.02414463,602.04,601.42,0.481]
[1741173435137,4.02321622,602.03,601.42,0.481]
[1741173435438,2.10896564,602.02,601.42,0.481]
[1741173435637,2.10896564,602.01,601.42,0.481]
[1741173435837,0.92533866,602.0,601.42,0.481]
[1741173436037,0.92533866,601.99,601.42,0.481]
[1741173436241,2.10896564,601.98,601.42,0.481]
[1741173436439,0.92533866,601.97,601.42,0.481]
[1741173436635,2.10896564,601.96,601.42,0.481]
[1741173436839,1.18362698,601.96,601.42,0.481]
[1741173437337,1.18362698,601.95,601.42,0.481]
[1741173437935,1.18362698,601.94,601.42,0.481]
[1741173438437,3.0999747,602.06,601.42,0.481]
[1741173438633,4.02625113,602.05,601.42,0.481]
[1741173438839,5.21065998,602.04,601.42,0.481]
[1741173439039,4.02625113,602.03,601.42,0.481]
[1741173439239,4.02596403,602.02,601.42,0.481]
[1741173439443,2.54429956,602.01,601.42,0.481]
[1741173439742,3.72830455,602.0,601.42,0.481]
[1741173439942,0.92627643,601.99,601.42,0.481]
[1741173440142,1.18440885,602.0,601.42,0.481]
[1741173440343,1.18440885,601.99,601.42,0.481]
[1741173440839,0.92638619,601.98,601.42,0.481]
[1741173441042,1.18440885,601.98,601.42,0.481]
[1741173441238,0.92646723,601.97,601.42,0.481]
[1741173441541,1.18440885,601.96,601.42,0.481]
[1741173441941,1.18440885,601.95,601.42,0.481]
[1741173442645,3.10089824,602.11,601.42,0.481]
[1741173442945,4.02757481,602.1,601.42,0.481]
[1741173443241,4.02757481,602.09,601.42,0.481]
[1741173443437,4.02757481,602.08,601.42,0.481]
[1741173443641,4.02757481,602.07,601.42,0.481]
[1741173443838,4.02757481,602.06,601.42,0.481]
[1741173444040,4.02757481,602.05,601.42,0.481]
[1741173444237,2.54519026,602.04,601.42,0.481]
[1741173444442,1.18488335,602.06,601.42,0.481]
[1741173444443,2.54535608,602.03,601.42,0.481]
[1741173444645,4.02767263,602.02,601.42,0.481]
[1741173444837,4.02767263,602.01,601.42,0.481]
[1741173445044,4.02767263,602.0,601.42,0.481]
[1741173445245,5.21255598,601.99,601.42,0.481]
[1741173445538,4.02767263,601.98,601.42,0.481]
[1741173445739,5.21255598,601.97,601.42,0.481]
[1741173445945,4.02767263,601.96,601.42,0.481]
[1741173446139,0.92667657,601.95,601.42,0.481]
[1741173446344,1.18488335,601.95,601.42,0.481]
[1741173446839,3.10035381,602.13,601.42,0.481]
[1741173447041,2.5446194,602.12,601.42,0.481]
[1741173447245,2.5446194,602.11,601.42,0.481]
[1741173447446,2.5446194,602.1,601.42,0.481]
[1741173447742,2.5446194,602.09,601.42,0.481]
[1741173447946,2.5446194,602.08,601.42,0.481]
[1741173448140,2.5446194,602.07,601.42,0.481]
[1741173448341,0.92638907,602.06,601.42,0.481]
[1741173448546,0.92638907,602.05,601.42,0.481]
[1741173448746,0.92638907,602.04,601.42,0.481]
[1741173449047,2.11087788,602.03,601.42,0.481]
[1741173449245,0.92612967,602.02,601.42,0.481]
[1741173449445,1.18448881,602.02,601.42,0.481]
[1741173449848,2.11061428,602.01,601.42,0.481]
[1741173450043,0.92612547,602.0,601.42,0.481]
[1741173450245,0.92612547,601.99,601.42,0.481]
[1741173450450,0.92612547,601.98,601.42,0.481]
[1741173450749,1.18448881,601.98,601.42,0.481]
[1741173450953,0.92605948,601.97,601.42,0.481]
[1741173451151,2.11054829,601.96,601.42,0.481]
[1741173451348,1.18448881,601.96,601.42,0.481]
[1741173451747,1.18448881,601.95,601.42,0.481]
[1741173452547,1.18448881,601.94,601.42,0.481]
[1741173453149,1.18448881,601.93,601.42,0.481]
[1741173453952,1.18448881,601.92,601.42,0.481]
[1741173454347,1.18448881,601.92,601.26,1.21098633]
[1741173454551,1.18448881,601.91,601.29,1.21098633]
[1741173454948,1.48348738,602.06,601.29,1.21098633]
[1741173454949,0.28920589,602.04,601.29,1.21098633]
[1741173455155,2.54752891,602.03,601.29,1.21098633]
[1741173455352,3.73375356,602.02,601.29,1.21098633]
[1741173455547,0.92740123,602.01,601.29,1.21098633]
[1741173455854,0.92740123,602.0,601.29,1.21098633]
[1741173456053,0.92740123,601.99,601.29,1.21098633]
[1741173456356,2.11362588,601.98,601.29,1.21098633]
[1741173456556,2.11362588,601.98,601.2,0.28920589]
[1741173456557,0.92740123,601.97,601.35,1.21098633]
[1741173456853,1.18622465,601.96,601.35,1.21098633]
[1741173457058,1.18622465,601.95,601.35,1.21098633]
[1741173457451,1.18622465,601.95,601.36,0.481]
[1741173457652,1.18622465,601.94,601.36,0.481]
[1741173458258,1.48621175,602.15,601.36,0.481]
[1741173458259,1.18622465,601.93,601.36,0.481]
[1741173458853,0.28918186,602.1,601.36,0.481]
[1741173459057,4.03840299,602.09,601.36,0.481]
[1741173459252,5.22678151,602.08,601.36,0.481]
[1741173459453,5.22678151,602.07,601.36,0.481]
[1741173459659,4.03840299,602.06,601.36,0.481]
[1741173459959,4.03840299,602.05,601.36,0.481]
[1741173460164,4.03840299,602.04,601.36,0.481]
[1741173460371,5.22678151,602.03,601.36,0.481]
[1741173460565,4.03840299,602.02,601.36,0.481]
[1741173460765,3.74034664,602.01,601.36,0.481]
[1741173460965,2.55196812,602.0,601.36,0.481]
[1741173461165,2.55196812,601.99,601.36,0.481]
[1741173461365,2.55196812,601.98,601.36,0.481]
[1741173461566,0.92902179,601.97,601.36,0.481]
[1741173461763,0.92902179,601.96,601.36,0.481]
[1741173461960,0.92902179,601.95,601.36,0.481]
[1741173462159,0.92902179,601.94,601.36,0.481]
[1741173462361,1.18837852,601.97,601.36,0.481]
[1741173462565,1.18837852,601.93,601.36,0.481]
[1741173462767,1.18837852,601.96,601.36,0.481]
[1741173463165,1.48856274,602.11,601.36,0.481]
[1741173463465,5.23443803,602.1,601.36,0.481]
[1741173463665,4.04466471,602.09,601.36,0.481]
[1741173463860,4.04466471,602.08,601.36,0.481]
[1741173464066,4.04466471,602.07,601.36,0.481]
[1741173464366,3.74587529,602.06,601.36,0.481]
[1741173464567,2.55610197,602.05,601.36,0.481]
[1741173464767,2.55585805,602.04,601.36,0.481]
[1741173464967,2.12028061,602.03,601.36,0.481]
[1741173465267,0.93050729,602.02,601.36,0.481]
[1741173465467,1.18977332,602.03,601.36,0.481]
[1741173465668,2.12046424,602.02,601.36,0.481]
[1741173465876,0.93069092,602.01,601.36,0.481]
[1741173466071,1.18977332,602.0,601.36,0.481]
[1741173466771,0.98663619,602.35,601.36,0.481]
[1741173466970,4.04548182,602.34,601.36,0.481]
[1741173467269,4.04548182,602.33,601.36,0.481]
[1741173467563,4.04548182,602.32,601.36,0.481]
[1741173467775,4.04548182,602.31,601.36,0.481]
[1741173467970,5.23531191,602.3,601.36,0.481]
[1741173468170,4.04548182,602.29,601.36,0.481]
[1741173468470,5.23531191,602.28,601.36,0.481]
[1741173468769,5.23531191,602.27,601.36,0.481]
[1741173468969,4.04548182,602.26,601.36,0.481]
[1741173469164,4.04548182,602.25,601.36,0.481]
[1741173469365,4.04548182,602.24,601.36,0.481]
[1741173469567,5.23531191,602.23,601.36,0.481]
[1741173469764,5.23531191,602.22,601.36,0.481]
[1741173470064,4.04548182,602.21,601.36,0.481]
[1741173470270,4.04548182,602.2,601.36,0.481]
[1741173470472,4.04548182,602.19,601.36,0.481]
[1741173470671,5.23531191,602.18,601.36,0.481]
[1741173470877,4.04548182,602.17,601.36,0.481]
[1741173471171,4.04548182,602.16,601.36,0.481]
[1741173471370,4.04548182,602.15,601.36,0.481]
[1741173471672,4.04548182,602.14,601.36,0.481]
[1741173471867,5.23531191,602.13,601.36,0.481]
[1741173472073,4.04548182,602.12,601.36,0.481]
[1741173472273,4.04548182,602.11,601.36,0.481]
[1741173472472,5.23531191,602.1,601.36,0.481]
[1741173472677,4.04548182,602.09,601.36,0.481]
[1741173472867,2.55647099,602.08,601.36,0.481]
[1741173473068,2.55647099,602.07,601.36,0.481]
[1741173473270,2.55647099,602.06,601.36,0.481]
[1741173473473,2.55647099,602.05,601.36,0.481]
[1741173473773,2.55647099,602.04,601.36,0.481]
[1741173473974,3.74630108,602.03,601.36,0.481]
[1741173474172,2.55647099,602.02,601.36,0.481]
[1741173474373,2.55647099,602.01,601.36,0.481]
[1741173474572,2.55647099,602.0,601.36,0.481]
[1741173474774,4.04309418,601.99,601.36,0.481]
[1741173475074,4.04166434,601.98,601.36,0.481]
[1741173475272,4.04166434,601.97,601.36,0.481]
[1741173475575,5.23149443,601.96,601.36,0.481]
[1741173475774,4.04166434,601.95,601.36,0.481]
[1741173475976,4.04166434,601.94,601.36,0.481]
[1741173476274,5.23149443,601.93,601.36,0.481]
[1741173476468,4.04166434,601.92,601.36,0.481]
[1741173476673,4.04166434,601.91,601.36,0.481]
[1741173476881,4.04166434,601.9,601.36,0.481]
[1741173477079,4.04166434,601.89,601.36,0.481]
[1741173477274,4.04166434,601.88,601.36,0.481]
[1741173477475,4.04166434,601.87,601.36,0.481]
[1741173477676,4.04166434,601.86,601.36,0.481]
[1741173477872,4.04166434,601.85,601.36,0.481]
[1741173478070,4.04166434,601.84,601.36,0.481]
[1741173478372,5.23149443,601.83,601.1,0.28934054]
[1741173478571,4.04166434,601.82,600.65,1.21098633]
[1741173478777,4.04166434,601.81,600.98,1.21098633]
[1741173478972,4.04166434,601.8,600.98,1.21098633]
[1741173479173,4.04166434,601.79,600.98,1.21098633]
[1741173479373,4.04166434,601.78,600.98,1.21098633]
[1741173479571,4.04166434,601.77,600.98,1.21098633]
[1741173479775,4.04166434,601.76,600.99,0.28929845]
[1741173480075,4.04166434,601.75,600.99,0.28929845]
[1741173480382,2.55500273,601.74,600.99,0.28929845]
[1741173480677,2.55500273,601.73,600.99,0.28929845]
[1741173480878,3.74483282,601.72,600.99,0.28929845]
[1741173481083,2.55022676,601.71,600.99,0.28929845]
[1741173481281,2.54993938,601.7,600.99,0.28929845]
[1741173481473,2.54993938,601.69,600.99,0.28929845]
[1741173481674,0.92842819,601.68,601.0,0.481]
[1741173481877,2.54852958,601.67,601.0,0.481]
[1741173482082,4.03268204,601.66,601.0,0.481]
[1741173482280,2.54840376,601.65,601.0,0.481]
[1741173482581,2.54840376,601.64,601.0,0.481]
[1741173482774,2.54840376,601.63,601.0,0.481]
[1741173482977,2.54840376,601.62,601.0,0.481]
[1741173483174,0.92787716,601.61,601.0,0.481]
[1741173483377,2.11770725,601.6,601.0,0.481]
[1741173483576,1.18983009,601.6,601.0,0.481]
[1741173483784,0.28935378,601.77,601.0,0.481]
[1741173483785,1.18983009,601.59,601.0,0.481]
[1741173484281,1.18983009,601.58,601.0,0.481]
[1741173484682,0.98823807,601.88,601.0,0.481]
[1741173484683,1.48325195,601.74,601.0,0.481]
[1741173484986,0.98823807,601.88,601.0,0.481]
[1741173484987,4.02845992,601.73,601.0,0.481]
[1741173485183,4.02845992,601.72,601.0,0.481]
[1741173485383,4.02845992,601.71,601.0,0.481]
[1741173485584,5.21321328,601.7,601.0,0.481]
[1741173485786,4.02845992,601.69,601.0,0.481]
[1741173486085,3.72996133,601.68,601.0,0.481]
[1741173486283,3.72996133,601.67,601.0,0.481]
[1741173486587,1.18475336,601.66,601.0,0.481]
[1741173487192,0.98823807,601.95,601.0,0.481]
[1741173487384,0.28931649,601.86,601.0,0.481]
[1741173487581,4.02427143,601.85,601.0,0.481]
[1741173487891,4.02427143,601.84,601.0,0.481]
[1741173488085,1.18379132,601.94,601.0,0.481]
[1741173488086,4.02427143,601.83,601.0,0.481]
[1741173488292,2.54298854,601.82,601.0,0.481]
[1741173488489,2.54298854,601.81,601.0,0.481]
[1741173488687,2.54298854,601.8,601.0,0.481]
[1741173488883,2.10943825,601.79,601.0,0.481]
[1741173489082,0.92564693,601.78,601.0,0.481]
[1741173489286,2.10943825,601.77,601.0,0.481]
[1741173489592,1.18379132,601.77,601.0,0.481]
[1741173489786,2.10967583,601.76,601.0,0.481]
[1741173489985,1.18379132,601.76,601.0,0.481]
[1741173490188,1.18379132,601.75,601.0,0.481]
[1741173490684,1.18379132,601.74,601.0,0.481]
[1741173490887,0.98613199,602.01,601.0,0.481]